Workbook

Sheet KORTTI
B1: Tuulia Ollikainen | E1: 24.1.1992 Helsinki
B2: SUPERPESIS | E2: Runkosarja | I2: Kärkilyönnit (KL), pesänvälit | P2: Ylempi loppusarja | U2: Alempi loppusarja | Z2: Arvo-ottelut ja mitalit | AF2: Runkosarjan jälkeen
B3: Vuosi | C3: Sija | D3: Seura | E3: OTT | F3: KUN | G3: LÖI | H3: TOI | I3: KL | J3: 0 > 1 | K3: 1 > 2 | L3: 2 > 3 | M3: 3 > k | N3: KL-% | P3: OTT | Q3: KUN | R3: LÖI | S3: TOI | T3: KL | U3: OTT | V3: KUN | W3: LÖI | X3: TOI | Y3: KL | Z3: IL | AA3: LL | AB3: Halli | AC3: K | AD3: H | AE3: P
B4: 2006 | D4: PuMu | F4: suomensarja
B5: 2007
B6: 2008 | D6: PuMu | F6: Tyttöjen superpesis
B7: 2009 | D7: PuMu | F7: Tyttöjen superpesis
B8: 2010 | D8: PuMu | F8: ykköspesis
B9: 2011 | D9: Roihu | F9: ykköspesis
B10: 2012
B11: 2013
B12: 2014 | C12: 11. | D12: Roihu | E12: 11 | F12: 0 | G12: 1 | H12: 0 | I12: 21 | J12: 15 | K12: 1 | L12: 4 | M12: 1 | N12: 40.4 % | O12: =PRODUCT(I12/N12) -> 51.98019802 | U12: 7 | V12: 0 | W12: 4 | X12: 0 | Y12: 13 | AF12: alemmat pudotuspelit, superpesiskarsinta
B13: 2015 | D13: Roihu | F13: ykköspesis
B14: Yhteensä | E14: =SUM(E4:E13) -> 11 | F14: 0 | G14: 1 | H14: 0 | I14: 21 | J14: 15 | K14: 1 | L14: 4 | M14: 1 | N14: =PRODUCT(I14/O14) -> 40.4 % | O14: =SUM(O4:O13) -> 51.98019802 | P14: 0 | Q14: 0 | R14: 0 | S14: 0 | T14: 0 | U14: 7 | V14: 0 | W14: 4 | X14: 0 | Y14: 13 | Z14: 0 | AA14: 0 | AB14: 0 | AC14: 0 | AD14: 0 | AE14: 0
B15: Pesispörssi | D15: =SUM(F14:H14)+((I14-F14-G14)/3)+(E14/3)+(Z14*25)+(AA14*25)+(AB14*10)+(AC14*25)+(AD14*20)+(AE14*15) -> 11.3
B17: URA SUPERISSA | E17: OTT | F17: KUN | G17: LÖI | H17: TOI | I17: KL | K17: ka/L | L17: ka/T | M17: ka/KL | N17: K - % | P17: ENSIMMÄISET
B18: Runkosarja | E18: =PRODUCT(E14) -> 11 | F18: =PRODUCT(F14) -> 0 | G18: =PRODUCT(G14) -> 1 | H18: =PRODUCT(H14) -> 0 | I18: =PRODUCT(I14) -> 21 | K18: =PRODUCT((F18+G18)/E18) -> 0.09 | L18: =PRODUCT(H18/E18) -> 0.00 | M18: =PRODUCT(I18/E18) -> 1.91 | N18: =PRODUCT(N14) -> 40.4 % | O18: =PRODUCT(O14) -> 51.98019802 | P18: Ottelu | S18: 13.06. 2014 Roihu - Kirittäret 0-1 (3-3, 1-10) | AD18: 1. ottelu | AF18: 22 v 4 kk 20 pv
B19: Ylempi loppusarja | P19: Lyöty juoksu | S19: 03.08. 2014 Roihu - Virkiä 0-2 (2-8, 0-1) | AD19: 7. ottelu | AF19: 24 v 6 kk 10 pv
B20: Alempi loppusarja | E20: =PRODUCT(U14) -> 7 | F20: =PRODUCT(V14) -> 0 | G20: 4 | H20: 0 | I20: 13 | K20: =PRODUCT((F20+G20)/E20) -> 0.57 | L20: =PRODUCT(H20/E20) -> 0.00 | M20: =PRODUCT(I20/E20) -> 1.86 | N20: =PRODUCT(I20/O20) -> 36.1 % | O20: 36 | P20: Tuotu juoksu
B21: KAIKKI | E21: =SUM(E18:E20) -> 18 | F21: =SUM(F18:F20) -> 0 | G21: =SUM(G18:G20) -> 5 | H21: =SUM(H18:H20) -> 0 | I21: =SUM(I18:I20) -> 34 | K21: =PRODUCT((F21+G21)/E21) -> 0.28 | L21: =PRODUCT(H21/E21) -> 0.00 | M21: =PRODUCT(I21/E21) -> 1.89 | N21: =PRODUCT(I21/O21) -> 38.6 % | O21: =SUM(O18:O20) -> 87.98019802 | P21: Kunnari
B23: Seurat | D23: Puna-Mustat = Helsingin Puna-Mustat (1941), kasvattajaseura
D24: Roihu = Roihu, Helsinki (1957)
